bitfinex/quotes_ETHUSD_20260225
["timestamp","ask_amount","ask_price","bid_price","bid_amount"]
[1772032669641,8.27933256,1996.1,1995.2,0.001]
[1772032670031,8.27933256,1996.1,1995.2,1.25399607]
[1772032670234,5.76503344,1996.1,1995.2,1.25399607]
[1772032670431,2.51429912,1995.6,1995.2,0.001]
[1772032670634,1.25269329,1995.7,1995.2,0.001]
[1772032671330,1.25256776,1995.9,1995.2,0.001]
[1772032671941,1.25244226,1996.1,1995.2,0.001]
[1772032672147,1.951,1996.2,1995.3,35.73847182]
[1772032672148,3.20342843,1996.2,1995.3,35.73847182]
[1772032672330,1.25242843,1996.2,1995.3,5.73847182]
[1772032672535,1.25242843,1996.2,1995.4,1.958]
[1772032672856,1.25219133,1996.5,1995.5,1.25281884]
[1772032673053,1.25219133,1996.5,1995.6,8.25277094]
[1772032673231,5.00838327,1996.7,1995.7,5.73847182]
[1772032673436,1.25216272,1996.6,1995.7,5.73847182]
[1772032673971,1.2519405,1996.9,1995.7,5.73847182]
[1772032674163,1.2519405,1996.9,1995.8,1.959]
[1772032674752,0.002,1997.3,1996.8,5.73847182]
[1772032674952,0.002,1997.6,1996.8,5.73847182]
[1772032674953,0.002,1997.6,1996.9,8.559474]
[1772032675158,0.002,1997.6,1996.4,5.73847182]
[1772032675346,0.002,1997.6,1996.7,1.958]
[1772032677239,0.002,1997.6,1996.7,3.21003764]
[1772032677556,1.949,1997.5,1996.4,6.99071588]
[1772032678355,0.002,1997.5,1996.6,5.739824]
[1772032678562,0.002,1997.5,1996.4,1.25224406]
[1772032678563,0.002,1997.5,1996.8,5.739824]
[1772032678744,0.002,1997.5,1997.0,5.739824]
[1772032679254,1e-08,1997.7,1997.3,14.798522]
[1772032679458,1e-08,1997.7,1997.4,1.25162711]
[1772032679665,1e-08,1997.7,1997.4,6.99145111]
[1772032679842,1e-08,1997.7,1997.4,8.94845111]
[1772032680039,1e-08,1997.7,1996.9,6.99172251]
[1772032681062,1e-08,1997.7,1996.5,1.958]
[1772032681369,1e-08,1997.7,1996.6,7.409657]
[1772032681964,1e-08,1997.7,1996.6,1.25210697]
[1772032682328,1e-08,1997.7,1996.6,5.739824]
[1772032682528,1e-08,1997.7,1996.0,5.01000115]
[1772032682529,5.75502174,1997.7,1995.6,5.739824]
[1772032682731,5.75502174,1997.7,1995.8,5.739824]
[1772032682956,5.75502174,1997.7,1996.0,5.739824]
[1772032683162,5.75502173,1997.3,1995.7,1.958]
[1772032683463,7.69702173,1997.2,1995.7,1.958]
[1772032683866,1.25181513,1997.1,1995.8,1.25263052]
[1772032684078,1.25181513,1997.1,1995.9,35.739824]
[1772032684244,7.00683686,1997.1,1995.8,1.25263052]
[1772032684452,1.25181513,1997.1,1996.0,5.739824]
[1772032684780,1.25181513,1997.1,1995.9,1.957]
[1772032684981,1.25181513,1997.1,1995.9,7.696824]
[1772032685151,1.25181513,1997.1,1996.0,7.25137]
[1772032685345,1.25181513,1997.1,1995.9,7.696824]
[1772032685547,1.25181513,1997.1,1996.0,5.713515]
[1772032685776,1.25181513,1997.1,1996.0,6.99232901]
[1772032685974,1.25181513,1997.1,1996.2,17.781348]
[1772032686168,1.25181513,1997.1,1996.0,1.25250501]
[1772032686377,1.25181513,1997.1,1996.1,2.13444]
[1772032687043,0.002,1997.0,1996.1,2.13444]
[1772032687248,0.002,1997.0,1996.0,3.21050501]
[1772032687710,0.002,1997.0,1996.1,2.523832]
[1772032687852,0.002,1997.0,1995.8,6.99241198]
[1772032688180,0.002,1997.0,1995.8,8.95041198]
[1772032688373,5.75702173,1997.0,1995.8,8.95041198]
[1772032689880,1.2519405,1996.9,1995.8,8.95041198]
[1772032690247,1.2519405,1996.9,1995.8,7.697824]
[1772032690454,7.00696223,1996.9,1995.5,0.001]
[1772032690673,7.00696223,1996.9,1995.5,1.25378439]
[1772032691361,7.00696223,1996.9,1995.5,0.001]
[1772032691568,5.75502173,1996.5,1995.5,0.001]
[1772032691895,5.75502173,1996.1,1995.3,0.001]
[1772032693688,1.25237952,1996.2,1995.3,0.001]
[1772032694196,5.00951808,1996.3,1995.3,6.99376841]
[1772032694767,1.25231678,1996.3,1995.4,5.739824]
[1772032694984,5.00804913,1996.8,1995.4,5.739824]
[1772032695290,6.95204913,1996.8,1995.6,5.739824]
[1772032695591,6.95204913,1996.8,1995.8,5.739824]
[1772032696800,6.95204913,1996.8,1995.9,1.25256776]
[1772032697498,12.70707086,1996.8,1995.4,6.99270562]
[1772032697795,5.75502173,1996.7,1995.4,1.955]
[1772032698172,5.75502173,1996.5,1995.3,0.001]
[1772032699095,7.00727578,1996.4,1995.3,0.001]
[1772032699296,5.46290796,1996.3,1995.3,0.001]
[1772032699680,1.943,1996.3,1995.7,0.001]
[1772032701301,4.77228748,1996.2,1995.5,0.001]
[1772032701487,10.52730921,1996.2,1995.5,0.001]
[1772032702575,4.77228748,1996.2,1995.5,0.001]
[1772032703095,10.52730921,1996.2,1995.5,0.001]
[1772032703278,4.77228748,1996.2,1995.5,0.001]
[1772032703622,6.95251808,1996.3,1995.5,0.001]
[1772032703623,3.19535824,1996.3,1995.5,5.740824]
[1772032703781,1.25230276,1996.4,1995.5,5.740824]
[1772032703988,3.19817646,1996.6,1995.7,5.739824]
[1772032704193,1.946,1996.6,1995.7,5.739824]
[1772032704603,5.00788945,1996.9,1995.7,5.739824]
[1772032704779,5.00788945,1996.9,1995.9,5.739824]
[1772032704979,8.52779741,1996.9,1995.9,5.739824]
[1772032705190,8.52779741,1996.9,1995.7,6.99251729]
[1772032706580,5.45203513,1996.8,1995.7,6.99251729]
[1772032707200,5.45203513,1996.8,1995.6,1.2527172]
[1772032707485,5.45203513,1996.8,1995.6,10.300251]
[1772032707486,1.2520659,1996.7,1995.6,10.300251]
[1772032707687,1.948,1996.6,1995.6,10.300251]
[1772032708186,1.948,1996.6,1995.6,5.12369804]
[1772032708888,1.948,1996.6,1995.8,5.12369804]
[1772032709487,3.20014234,1996.6,1995.9,1.25256776]
[1772032710390,3.20014234,1996.6,1995.5,0.001]
[1772032710600,3.51990796,1996.2,1995.5,0.001]
[1772032710925,7.19120547,1996.1,1995.4,0.001]
[1772032711215,1.948,1996.1,1995.4,1.25386364]
[1772032711414,1.25250501,1996.0,1995.4,0.001]
[1772032711784,1.25250501,1996.0,1995.6,0.001]
[1772032712303,3.20048807,1996.1,1995.6,0.001]
[1772032712693,3.20048807,1996.1,1995.4,0.001]
[1772032712896,8.44369354,1996.1,1995.4,0.001]
[1772032713903,3.20048807,1996.1,1995.4,0.001]
[1772032716919,3.51990796,1995.9,1995.4,0.001]
[1772032717212,3.51990796,1995.6,1995.2,0.001]
[1772032717512,1.952,1995.5,1995.2,0.001]
[1772032717752,1.25288162,1995.4,1994.8,0.001]
[1772032718028,6.49608709,1995.4,1994.7,0.001]
[1772032718327,3.51990796,1995.3,1994.7,0.001]
[1772032718496,3.51990796,1995.3,1994.5,0.001]
[1772032718497,5.24320547,1995.2,1994.5,0.001]
[1772032718696,1.953,1995.1,1994.5,0.001]
[1772032719936,1.25313283,1995.0,1994.5,0.001]
[1772032720103,6.96553132,1995.1,1994.5,5.32164776]
[1772032720104,3.20610835,1995.1,1994.5,5.32164776]
[1772032720303,1.953,1995.5,1994.5,5.32164776]
[1772032720602,1.25263052,1995.8,1994.9,25.607412]
[1772032720803,1.25263052,1995.8,1994.5,1.943]
[1772032720804,1.25250925,1996.0,1995.1,5.32064776]
[1772032721733,1.953,1996.1,1995.3,5.32064776]
[1772032721927,3.20546569,1996.1,1995.3,5.32064776]
[1772032722229,1.25236165,1996.3,1995.5,5.32064776]
[1772032723126,3.20529858,1996.4,1995.3,10.0008]
[1772032723330,8.44850405,1996.4,1995.3,6.136945]
[1772032723536,11.96841201,1996.4,1995.3,6.136945]
[1772032723832,11.96841201,1996.4,1995.2,8.51564733]
[1772032724033,11.96841201,1996.4,1995.2,5.32064776]
[1772032724211,3.51990796,1995.8,1994.8,5.32064776]
[1772032724412,1.953,1995.7,1994.8,5.32064776]
[1772032724912,5.47290796,1995.7,1994.5,1.25439585]
[1772032725128,10.71611343,1995.7,1994.9,0.001]
[1772032725633,5.24320547,1995.6,1994.9,0.001]
[1772032725937,1.25281884,1995.5,1994.9,0.001]
[1772032727407,3.51990796,1995.4,1994.6,0.001]
[1772032727629,1.954,1995.3,1994.6,0.001]
[1772032727836,1.25300721,1995.2,1994.6,0.001]
[1772032731437,1.25297912,1995.3,1994.6,5.32164776]
[1772032731615,5.01142828,1995.5,1994.6,5.32164776]
[1772032731812,1.25281884,1995.5,1994.8,5.32064776]
[1772032732026,1.25281884,1995.5,1994.6,1.25433521]
[1772032732612,1.25281884,1995.5,1994.6,0.001]
[1772032732938,1.25281884,1995.5,1994.6,1.25437747]
[1772032733135,1.25281884,1995.5,1994.6,6.57502523]
[1772032734935,1.25281884,1995.5,1994.5,5.01478683]
[1772032734936,6.49602431,1995.5,1994.5,0.001]
[1772032735143,6.49602431,1995.5,1993.9,1.25379614]
[1772032735144,5.24320547,1995.3,1993.9,1.25379614]
[1772032735351,7.76077714,1995.1,1993.9,1.25379614]
[1772032736112,6.0493088,1995.0,1993.9,1.25379614]
[1772032736508,1.25313283,1995.0,1994.0,4.83205627]
[1772032738245,5.01253132,1995.1,1994.1,0.001]
[1772032739716,2.51757167,1994.8,1994.1,0.001]
[1772032739915,1.958,1994.7,1994.1,0.001]
[1772032740335,1.25338413,1994.6,1994.1,0.001]
[1772032740750,5.01291054,1994.9,1994.1,4.83305627]
[1772032740958,6.75417597,1995.1,1994.1,0.001]
[1772032741316,4.79617597,1995.0,1994.1,0.001]
[1772032742531,4.79617597,1994.2,1993.1,4.83205627]
[1772032742741,1.957,1994.1,1993.1,4.83205627]
[1772032743051,1.957,1994.1,1993.4,4.83205627]
[1772032743616,3.21044697,1994.5,1993.6,4.83205627]
[1772032744858,4.79617597,1994.2,1993.0,10.4]
[1772032745158,4.79617597,1994.2,1992.9,6.08649642]
[1772032745734,4.79617597,1993.9,1992.6,6.08669844]
[1772032745944,1.956,1993.8,1992.8,4.83205627]
[1772032746147,1.956,1993.7,1992.8,4.83205627]
[1772032747058,1.956,1993.7,1992.5,4.83305627]
[1772032747059,6.05018881,1993.6,1992.5,4.83305627]
[1772032747440,4.79617597,1993.5,1992.5,4.83305627]
[1772032747791,4.79617597,1993.5,1992.5,1.25568181]
[1772032747936,1.25401284,1993.6,1992.6,4.83205627]
[1772032749030,1.25401284,1993.6,1992.6,6.08669737]
[1772032749361,1.25374659,1994.1,1993.1,4.83205627]
[1772032749561,2.51939104,1993.9,1993.1,4.83205627]
[1772032750075,1.25374659,1994.1,1993.1,4.83205627]
[1772032750264,3.21068237,1994.2,1993.1,4.83205627]
[1772032750425,3.21068237,1994.2,1993.3,4.83205627]
[1772032750629,3.21064545,1994.2,1993.3,4.83205627]
[1772032750834,1.957,1994.2,1993.5,4.83205627]
[1772032751035,5.73003157,1994.2,1993.2,6.0862953]
[1772032751535,0.002,1993.7,1993.2,6.0862953]
[1772032751976,5.73003157,1994.2,1993.2,6.0862953]
[1772032752185,2.52139104,1993.8,1992.8,6.08653832]
[1772032752338,1.957,1993.7,1992.8,4.83205627]
[1772032752538,2.51939104,1993.6,1992.8,4.83205627]
[1772032753141,1.25407574,1993.5,1992.7,1.2545725]
[1772032754455,1.25407574,1993.5,1992.6,1.25558613]
[1772032754968,1.25407574,1993.5,1992.6,6.0876424]
[1772032755475,1.25407574,1993.5,1992.6,6.08769788]
[1772032755673,1.25407574,1993.5,1992.7,4.83205627]
[1772032756051,1.25407574,1993.5,1992.9,4.83205627]
[1772032756243,1.25407574,1993.5,1992.6,4.83305627]
[1772032756450,2.51939104,1993.4,1992.6,4.83305627]
[1772032756849,1.25407574,1993.5,1992.6,4.83305627]
[1772032757551,1.25407574,1993.5,1992.6,6.08769816]
[1772032757860,1.25407574,1993.5,1992.7,4.83205627]
[1772032758063,3.20906385,1993.6,1992.8,4.83205627]
[1772032758568,5.72845489,1993.6,1992.8,4.83205627]
[1772032758779,5.72845489,1993.6,1992.6,1.25562068]
[1772032759174,5.72845489,1993.6,1992.7,4.83205627]
[1772032759383,3.20906385,1993.6,1992.7,6.08662488]
[1772032759572,3.20906385,1993.6,1992.7,6.08663508]
[1772032760488,3.20906385,1993.6,1992.7,6.0866214]
[1772032761589,5.72845489,1993.6,1992.7,6.08662859]
[1772032761915,1.25397185,1993.7,1992.8,4.83205627]
[1772032762722,3.20993841,1993.8,1992.8,4.83205627]
[1772032762994,3.20993841,1993.8,1993.0,4.83205627]
[1772032763408,1.25593841,1993.8,1993.0,4.83205627]
[1772032763611,0.002,1993.8,1993.1,1.25432742]
[1772032763986,0.002,1993.8,1993.0,6.0864096]
[1772032764182,0.002,1993.7,1993.0,6.0864096]
[1772032765069,0.002,1993.7,1993.0,4.83205627]
[1772032765268,0.002,1993.7,1992.7,7.54885]
[1772032765269,2.51939104,1993.6,1992.7,7.54885]
[1772032765779,1.25407574,1993.5,1992.7,7.54885]
[1772032765977,1.25407574,1993.5,1992.6,0.001]
[1772032765978,2.51939104,1993.2,1992.6,0.001]
[1772032766180,7.25609162,1993.0,1991.9,3.18503827]
[1772032766691,2.51939104,1992.7,1991.7,4.8137666]
[1772032766891,1.952,1992.6,1991.7,6.06897487]
[1772032767067,1.952,1992.6,1991.8,4.8137666]
[1772032768078,1.952,1992.6,1991.9,1.25508308]
[1772032768383,1.25453973,1992.8,1992.0,4.8137666]
[1772032769195,1.25450372,1992.9,1992.0,4.8137666]
[1772032769495,12.2731754,1993.2,1992.2,4.8137666]
[1772032769496,1.25430068,1993.2,1992.2,4.8137666]
[1772032769972,1.25430068,1993.2,1992.3,34.8489029]
[1772032770174,1.95,1993.3,1992.5,4.8489029]
[1772032770599,3.20421529,1993.3,1992.5,4.8489029]
[1772032770780,3.20421529,1993.3,1992.4,1.25476811]
[1772032772101,1.95,1993.3,1992.4,4.8489029]
[1772032772317,3.2042036,1993.3,1992.4,4.8489029]
[1772032772479,2.51939104,1993.2,1992.3,5.01907247]
[1772032773913,3.2042036,1993.3,1992.3,5.01907247]
[1772032775506,3.2042036,1993.3,1992.3,18.116189]
[1772032775910,3.2042036,1993.3,1992.3,2.51939104]
[1772032776414,6.96629495,1993.6,1992.6,4.8489029]
[1772032776718,14.12594583,1993.6,1992.5,8.637468]
[1772032777282,6.96629495,1993.6,1992.6,4.8489029]
[1772032777483,6.96629495,1993.6,1992.7,1.25457921]
[1772032777788,3.20401284,1993.6,1992.7,1.25457921]
[1772032777999,3.20401284,1993.6,1992.7,8.62287315]
[1772032778205,3.20401284,1993.6,1992.8,4.8489029]
[1772032779616,0.002,1993.7,1993.0,4.8489029]
[1772032779813,0.002,1993.7,1993.1,7.36829394]
[1772032779987,0.002,1993.7,1993.1,4.8489029]
[1772032780406,0.002,1993.7,1993.1,7.36829394]
[1772032780711,0.002,1993.7,1993.3,7.36829394]
[1772032781293,0.002,1994.0,1993.5,7.36829394]
[1772032781485,0.002,1994.0,1993.5,4.8489029]
[1772032781686,0.002,1994.0,1993.6,1.25401284]
[1772032781984,0.002,1994.0,1993.4,1.25409281]
[1772032782926,1.95,1994.0,1993.1,10.25145]
[1772032783088,6.59025984,1994.0,1993.1,1.25432742]
[1772032783285,7.15965088,1993.9,1992.7,6.10342867]
[1772032783488,4.64025984,1993.8,1992.7,1.25452577]
[1772032784098,5.89420978,1993.7,1992.6,5.01842843]
[1772032784385,1.25394994,1993.7,1992.9,2.51939104]
[1772032784587,1.25394994,1993.7,1992.8,4.8489029]
[1772032785513,1.25394994,1993.7,1992.7,12.07913]
[1772032785514,4.64025984,1993.6,1992.7,12.07913]
[1772032785695,1.947,1993.5,1992.7,10.4258]
[1772032786317,1.25413865,1993.4,1992.8,1.25451625]
[1772032786621,1.25413865,1993.4,1992.6,1.25464217]
[1772032786810,5.89439849,1993.4,1992.5,1.25465417]
[1772032787112,4.64025984,1993.3,1992.4,1.2557627]
[1772032788015,4.64025984,1993.1,1992.4,0.001]
[1772032788223,1.946,1993.0,1992.4,0.001]
[1772032788537,9.65662235,1993.5,1992.4,2.52039104]
[1772032788688,6.58625984,1993.1,1992.4,0.001]
[1772032789029,6.58625984,1993.1,1992.1,0.001]
[1772032789030,2.51939104,1992.6,1992.1,0.001]
[1772032789190,4.64025984,1992.1,1991.1,1.25857804]
[1772032789395,1.946,1992.0,1991.1,6.10748094]
[1772032789804,1.946,1992.0,1991.2,12.437347]
[1772032790000,1.946,1992.0,1991.2,10.032492]
[1772032790206,1.946,1992.0,1991.1,6.10748094]
[1772032790408,1.25508308,1991.9,1991.1,0.003]
[1772032790602,1.946,1992.0,1991.1,0.003]
[1772032790802,1.25486518,1992.3,1991.4,2.51939104]
[1772032790993,3.19976501,1992.5,1991.6,2.51939104]
[1772032791195,1.25460829,1992.7,1991.8,2.51939104]
[1772032791395,1.945,1992.8,1991.8,2.51939104]
[1772032791651,3.19951947,1992.8,1991.8,2.51939104]
[1772032791828,1.25451947,1992.8,1991.8,2.51939104]
[1772032792333,1.25432742,1993.1,1992.0,2.51939104]
[1772032792632,3.19831192,1993.2,1992.4,2.51939104]
[1772032792998,1.944,1993.2,1992.4,2.51939104]
[1772032793200,3.19826868,1993.2,1992.4,2.51939104]
[1772032793396,1.25416471,1993.4,1992.6,2.51939104]
[1772032793608,7.84031589,1993.6,1992.6,2.51939104]
[1772032793909,3.20005605,1993.6,1992.8,2.51939104]
[1772032794102,1.946,1993.6,1992.8,2.51939104]
[1772032794301,3.20001376,1993.6,1992.8,2.51939104]
[1772032794624,1.946,1993.6,1992.9,1.2544533]
[1772032794918,1.946,1993.6,1992.8,7.53720427]
[1772032794919,3.2000169,1993.6,1992.8,1.25447155]
[1772032796428,3.2000169,1993.6,1992.6,1.25458979]
[1772032796634,7.67599423,1993.6,1992.6,1.25458979]
[1772032798515,4.47597733,1993.5,1992.6,1.25458979]
[1772032798717,5.73009528,1993.5,1992.5,14.822823]
[1772032798926,5.73009528,1993.5,1992.5,13.355823]
[1772032799328,3.20004287,1993.6,1992.6,11.888823]
[1772032799530,3.20004287,1993.6,1992.6,10.048823]
[1772032800253,3.19924287,1993.6,1992.6,10.048823]
[1772032800549,7.6752202,1993.6,1992.6,8.178814]
[1772032800744,1.25524287,1993.6,1992.7,5.99194628]
[1772032801049,1.947,1993.5,1992.7,5.99194628]
[1772032801720,1.947,1993.5,1992.7,1.25457921]
[1772032802229,1.947,1993.5,1992.7,5.99194628]
[1772032802453,1.949,1993.5,1992.7,5.99194628]
[1772032803032,1.25413865,1993.4,1992.7,5.99194628]
[1772032803229,3.20311011,1993.5,1992.7,5.99194628]
[1772032803552,4.47597733,1993.4,1992.4,1.25476811]
[1772032803924,4.47597733,1992.9,1992.2,0.001]
[1772032804165,4.47597733,1992.9,1992.2,1.25589049]
[1772032804365,1.946,1993.1,1992.2,4.78407531]
[1772032804861,1.946,1993.1,1992.2,0.001]
[1772032805063,5.73036769,1993.0,1992.2,0.001]
[1772032805649,4.47597733,1992.9,1992.2,0.001]
[1772032805858,4.47597733,1992.3,1991.3,5.1696]
[1772032806161,9.94916215,1992.2,1991.1,0.003]
[1772032806364,4.47597733,1992.1,1991.1,1.25858268]
[1772032806551,4.47597733,1992.1,1991.1,0.003]
[1772032806758,4.47597733,1992.1,1991.1,1.25857913]
[1772032806943,4.47597733,1992.1,1991.1,1.25777913]
[1772032807266,1.25502008,1992.0,1991.1,0.0006]
[1772032807439,5.73099741,1992.0,1991.1,0.0006]
[1772032807640,4.47597733,1991.9,1991.1,0.0006]
[1772032808643,1.25502008,1992.0,1991.1,0.0006]
[1772032808851,7.67585946,1992.3,1991.2,4.73736707]
[1772032809048,7.67585946,1992.3,1991.3,1.25546125]
[1772032809470,4.47597733,1992.2,1991.2,1.25548347]
[1772032809769,3.19988213,1992.3,1991.2,1.25548347]
[1772032810362,1.25476811,1992.4,1991.3,8.26555189]
[1772032810542,3.20076811,1992.4,1991.3,8.26555189]
[1772032810752,1.25475137,1992.5,1991.4,4.73736707]
[1772032810953,1.25475137,1992.5,1991.6,3.52818482]
[1772032810954,1.946,1992.4,1991.6,3.52818482]
[1772032811152,1.946,1992.4,1991.7,1.25520911]
[1772032811458,3.2007712,1992.4,1991.7,1.25520911]
[1772032811642,3.20077271,1992.4,1991.7,1.25520911]
[1772032813274,7.67675004,1992.4,1991.5,1.25528644]
[1772032813751,1.946,1992.3,1991.5,1.25528644]
[1772032814274,3.2006653,1992.6,1991.6,8.26555189]
[1772032815070,3.20064833,1992.6,1991.9,1.25508308]
[1772032815244,3.20064679,1992.6,1991.9,1.25508308]
[1772032815566,3.20039488,1993.0,1992.0,4.73736707]
[1772032816072,1.946,1993.0,1992.0,4.73736707]
[1772032816275,1.946,1993.0,1991.9,4.7824679]
[1772032816276,4.47597733,1992.8,1991.6,6.66736707]
[1772032816474,0.002,1992.3,1991.5,1.25529688]
[1772032816769,1.948,1992.3,1991.5,1.25529688]
[1772032816969,1.948,1992.3,1991.6,3.52818482]
[1772032817270,1.948,1992.3,1991.7,5.99257618]
[1772032817979,3.20283955,1992.3,1991.5,13.27845]
[1772032818373,7.67881688,1992.3,1991.3,1.25540995]
[1772032818673,4.47597733,1992.2,1991.2,1.25651422]
[1772032818979,4.47597733,1992.2,1991.2,0.001]
[1772032819191,1.25495708,1992.1,1991.2,0.001]
[1772032819346,4.47597733,1992.0,1991.2,0.001]
[1772032820063,4.47597733,1991.5,1990.4,1.25596738]
[1772032820260,1.945,1991.4,1990.4,1.25596738]
[1772032821052,1.945,1991.4,1990.4,1.25516738]
[1772032821262,1.25546125,1991.3,1990.3,3.18804344]
[1772032821673,3.52818482,1991.2,1990.0,1.2592535]
[1772032821856,8.00416215,1990.9,1990.0,0.003]
[1772032822063,1.945,1990.8,1990.0,1.25925826]
[1772032822366,4.47597733,1991.2,1990.0,9.52481015]
[1772032822679,1.25546125,1991.3,1990.2,25.595789]
[1772032822900,1.25546125,1991.3,1990.3,8.26555189]
[1772032823088,5.02184502,1991.5,1990.5,4.73736707]
[1772032823089,3.19933517,1991.5,1990.5,4.73736707]
[1772032823292,5.73106041,1991.9,1990.7,4.73736707]
[1772032823475,1.944,1992.0,1991.0,21.166437]
[1772032823777,1.944,1992.0,1991.1,8.26555189]
[1772032823970,1.944,1992.0,1991.1,4.73736707]
[1772032824167,3.19902282,1992.0,1991.1,4.73736707]
[1772032825075,3.19902891,1992.0,1991.1,4.73736707]
[1772032825256,3.19902891,1992.0,1991.2,1.2555243]
[1772032825456,1.944,1992.0,1991.2,1.2555243]
[1772032825776,3.19902796,1992.0,1991.2,1.2555243]
[1772032826089,0.002,1992.3,1991.6,30.0]
[1772032826401,0.002,1992.3,1991.8,12.12309]
[1772032826566,0.002,1992.3,1991.8,11.464987]
[1772032826754,1.25683178,1992.3,1991.6,4.27964393]
[1772032826961,1.25683178,1992.3,1991.5,1.933]
[1772032827382,1.25495708,1992.1,1991.4,1.25539821]
[1772032828093,1.25495708,1992.1,1991.2,4.27964393]
[1772032828094,1.25495708,1992.1,1991.2,1.25468826]
[1772032828588,4.41954672,1992.0,1991.0,3.235238]
[1772032828892,4.41954672,1992.0,1990.7,1.25580326]
[1772032828893,4.41954672,1991.9,1990.7,1.25580326]
[1772032829456,3.19714609,1991.8,1990.7,5.53544719]
[1772032830290,4.62899189,1991.7,1990.7,1.25580326]
[1772032830782,4.62899189,1991.6,1990.4,1.25602893]
[1772032831585,5.88432706,1991.5,1990.4,1.25602893]
[1772032831893,1.943,1991.4,1990.4,5.47222197]
[1772032832053,1.943,1991.4,1990.4,5.47322197]
[1772032832253,4.62899189,1991.5,1990.4,5.47322197]
[1772032832487,1.943,1991.5,1990.6,4.21619304]
[1772032832690,0.002,1991.6,1990.7,4.21619304]
[1772032832986,0.002,1991.6,1990.8,3.52818482]
[1772032833165,0.002,1991.6,1990.9,32.97071304]
[1772032833361,0.002,1991.6,1991.0,15.138385]
[1772032833556,0.002,1991.6,1991.1,1.25558736]
[1772032835880,3.19491868,1992.2,1991.3,20.900313]
[1772032836084,3.19491868,1992.2,1991.1,4.78377218]
[1772032836085,4.62899189,1992.1,1991.1,1.25558736]
[1772032837520,1.25491868,1992.2,1991.0,7.40979242]
[1772032837684,0.002,1992.3,1991.3,5.47165429]
[1772032837884,0.002,1992.3,1991.4,1.942]
[1772032838103,0.002,1992.3,1991.4,5.47018482]
[1772032838704,0.002,1992.3,1991.4,9.68637786]
[1772032838915,4.63099189,1992.3,1991.3,1.25546125]
[1772032839889,1.25489408,1992.2,1991.2,5.02184502]
[1772032840110,1.25489408,1992.2,1991.3,2.373695]
[1772032842100,1.25489408,1992.2,1991.4,1.25539821]
[1772032842697,1.25489408,1992.2,1991.2,5.02197304]
[1772032843228,1.25489408,1992.2,1991.3,18.519018]
[1772032843527,1.25489408,1992.2,1991.3,4.21619304]
[1772032843987,4.62899189,1992.1,1991.2,5.02197304]
[1772032844192,4.62899189,1992.1,1990.8,3.19771349]
[1772032844392,4.62899189,1992.1,1990.9,5.02269363]
[1772032844618,4.62899189,1992.1,1990.9,1.25571349]
[1772032845114,4.62899189,1991.9,1990.9,1.25571349]
[1772032845313,3.52818482,1992.0,1990.8,3.19773844]
[1772032845314,6.56699189,1991.8,1990.8,3.19773844]
[1772032845718,4.62899189,1991.7,1990.8,3.19773844]
[1772032846020,1.25527214,1991.6,1990.8,1.942]
[1772032846210,1.25508308,1991.9,1990.9,4.21619304]
[1772032846415,1.937,1991.8,1990.9,4.21619304]
[1772032846796,5.88406287,1992.0,1991.1,4.21619304]
[1772032847003,4.62899189,1991.9,1990.8,5.47196157]
[1772032847613,4.62899189,1991.9,1990.9,0.001]
[1772032847814,4.62899189,1991.7,1990.9,0.001]
[1772032848123,5.88426403,1991.6,1990.9,0.001]
[1772032848325,1.937,1991.5,1990.9,0.001]
[1772032848698,4.62899189,1991.4,1990.9,0.001]
[1772032850025,1.25527214,1991.6,1990.9,0.001]
[1772032851518,4.62899189,1991.5,1990.9,0.001]
[1772032852035,1.25527214,1991.6,1990.9,0.001]
[1772032853503,6.95908857,1991.7,1990.9,0.001]
[1772032853504,3.1932536,1991.7,1990.9,0.001]
[1772032854717,7.82224549,1991.7,1990.9,0.001]
[1772032856611,3.1932536,1991.7,1990.9,4.50453394]
[1772032856808,1.938,1991.7,1990.9,4.50453394]
[1772032857009,3.19321886,1991.7,1991.0,7.439675]
[1772032857329,3.19321886,1991.7,1990.9,4.50453394]
[1772032858026,3.19321723,1991.7,1990.9,4.50453394]
[1772032858629,3.19321723,1991.7,1991.0,1.25565042]
[1772032858808,3.19321723,1991.7,1990.9,5.76019934]
[1772032859004,2.52491702,1991.6,1990.9,0.001]
[1772032859203,7.63051508,1991.7,1990.9,5.76024675]
[1772032859204,3.19321723,1991.7,1990.9,5.76024675]
[1772032859436,3.19322006,1991.7,1990.9,5.76024675]
[1772032859937,1.938,1991.7,1991.0,4.50353394]
[1772032860118,1.938,1991.7,1991.1,4.50353394]
[1772032860310,1.25506774,1992.0,1991.2,7.02845096]
[1772032860505,5.01995137,1992.1,1991.4,3.78031523]
[1772032860506,3.19295714,1992.1,1991.4,3.78031523]
[1772032860706,1.25495714,1992.1,1991.4,1.25539821]
[1772032860905,1.25495714,1992.1,1991.4,5.75893215]
[1772032861536,0.002,1992.2,1991.5,2.52491702]
[1772032861727,0.002,1992.2,1991.7,7.02845096]
[1772032862041,1.25677057,1992.4,1992.0,7.02845096]
[1772032862042,0.002,1992.4,1992.0,7.02845096]
[1772032862204,0.002,1992.4,1992.1,4.50353394]
[1772032862564,0.002,1992.4,1992.2,1.25489408]
[1772032863108,0.002,1992.6,1992.2,1.25489408]
[1772032863357,4.43929785,1993.5,1992.5,4.50353394]
[1772032863641,4.43929785,1993.5,1992.2,1.25489408]
[1772032863642,0.002,1993.5,1992.8,2.52491702]
[1772032863809,1.25608346,1993.5,1992.8,7.02845096]
[1772032864004,0.002,1993.5,1992.8,7.02845096]
[1772032864241,0.002,1993.5,1993.1,7.02845096]
[1772032864436,0.002,1993.5,1993.2,20.439962]
[1772032864637,0.002,1993.5,1993.2,5.75775418]
[1772032864951,0.002,1993.5,1993.1,1.937]
[1772032865112,0.002,1993.5,1993.1,3.1913193]
[1772032865821,0.002,1993.5,1993.1,1.937]
[1772032866018,1.2533213,1994.7,1993.5,4.50353394]
[1772032866221,1.2533213,1994.7,1993.8,2.52491702]
[1772032866621,1.2533213,1994.7,1993.8,1.2538472]
[1772032867142,1.2533213,1994.7,1993.8,3.77876422]
[1772032867329,1.25313283,1995.0,1994.2,2.52491702]
[1772032867841,4.43729785,1994.5,1993.4,4.50353394]
[1772032868011,4.43729785,1994.5,1993.5,9.713659]
[1772032868207,4.43729785,1994.5,1993.7,28.088892]